Cogmind - Beta 14 @@@ ROGUE MODE // 2024.08.07 @ 01:34:35 Player: Nell Result: Destroyed by as-08690 with Assembled Blade Performance ------------- Evolutions (0) 0 Regions Visited (2) 400 Robots Destroyed (4) 20 Value Destroyed (27) 27 Prototype IDs (0) 0 Alien Tech Used (0) 0 Bonus (0) 0 TOTAL SCORE: 447 Bonus ------- None Cogmind --------- Core Integrity 0/250 Matter 196/300 Energy 88/100 System Corruption 0% Temperature Cool (0) Movement Rolling (80) Location -10/Mines Parts ------- > --- POWER (1) -------- (None) > --- PROPULSION (2) --- Wheel > --- UTILITY (2) ------ Small Storage Unit > --- WEAPON (2) ------- (None) > --- INVENTORY (8) ---- Light Ion Engine Aluminum Leg Tractor Beam EM Pulse Gun Grenade Launcher Peak State ------------ > --- POWER ------------ Ion Engine > --- PROPULSION ------- Aluminum Leg Aluminum Leg > --- UTILITY ---------- Small Storage Unit Tractor Beam > --- WEAPON ----------- Assault Rifle Assault Rifle > --- INVENTORY -------- Light Ion Engine Wheel Wheel EM Pulse Gun [Rating: 7] Favorites ----------- Power Ion Engine Engine Ion Engine Propulsion Aluminum Leg Leg Aluminum Leg Wheel Wheel Utility Small Storage Unit Device Seismic Detector Storage Small Storage Unit Weapon Assault Rifle Energy Gun EM Pulse Gun Ballistic Gun Assault Rifle Launcher Grenade Launcher Build | -11 -10 -10 ------- Run | Yrd Mat Min Slots Evolved . | . . . Power . | . . . Propulsion . | . . . Utility . | . . . Weapon . | . . . Parts Attached 19 | 9 1 9 Power 3 | 1 . 2 Engine 3 | 1 . 2 Core . | . . . Reactor . | . . . Propulsion 8 | 2 . 6 Treads . | . . . Leg 2 | 2 . . Wheel 6 | . . 6 Hover . | . . . Flight . | . . . Utility 3 | 3 . . Device 2 | 2 . . Storage 1 | 1 . . Processor . | . . . Hackware . | . . . Protection . | . . . Artifact . | . . . Weapon 5 | 3 1 1 Energy Gun 1 | 1 . . Energy Cannon . | . . . Ballistic Gun 3 | 2 . 1 Ballistic Cannon . | . . . Launcher 1 | . 1 . Special Weapon . | . . . Impact Weapon . | . . . Slashing Weapon . | . . . Piercing Weapon . | . . . Special Melee Weapon . | . . . Unidentified Prototypes . | . . . Parts Lost 10 | . . 10 Power 3 | . . 3 Propulsion 4 | . . 4 Utility 1 | . . 1 Weapon 2 | . . 2 Highest Loss Streak 10 | . . 10 To Critical Strikes . | . . . Average Slot Usage (%) 90 | . 100 83 Engine 12 | . 14 10 Leg 21 | . 28 17 Wheel 5 | . . 9 Device 13 | . 14 12 Storage 14 | . 14 14 Ballistic Gun 16 | . 22 12 Launcher 6 | . 6 6 Peak Build Rating 7 | 7 7 7 Average Rating 6 | 5 7 5 On Entrance 4 | . 7 7 Naked Turns . | . . . Heaviest Build 16 | 15 16 16 Greatest Support 20 | 20 20 20 Greatest Overweight (x) 1 | . . 1 Average Overweight (x) . | . . . Largest Inventory Capacity 8 | 8 8 8 Average Capacity 7 | 7 8 8 Most Carried 7 | 6 7 7 Average Carried 5 | 3 6 6 Final Capacity 8 | 8 8 8 Final Carried 7 | 6 7 5 Class Distribution -------------------- 100% | Mutant Dominant Class ---------------- Mutant | -10/Materials Mutant | -10/Mines Resources | -11 -10 -10 ----------- Run | Yrd Mat Min Matter Collected 350 | 350 . . Remotely 226 | 226 . . Salvage Created 139 | 134 . 5 Parts 10 | 10 . . Haulers Intercepted . | . . . Recyclers Shooed . | . . . Parts Field Recycled . | . . . Retrieved Matter . | . . . Parts Self-Destructed . | . . . Prevented . | . . . Kills | -11 -10 -10 ------- Run | Yrd Mat Min Combat Hostiles Destroyed 6 | . . 6 AOE 6 | . . 6 Classes Destroyed 3 | 2 . 1 Tunneler 3 | 3 . . Recycler 1 | 1 . . Assembled 6 | . . 6 Best Kill Streak 6 | 4 . 6 Combat Bots Only 6 | . . 6 Max Kills in Single Turn 3 | 1 . 3 Gunslinging . | . . . Exploded 3 | . . 3 Melee . | . . . Uniques/NPCs Destroyed . | . . . Combat | -11 -10 -10 -------- Run | Yrd Mat Min Hostile Shots Fired 28 | . . 28 Missed 2 | . . 2 Damage Taken 966 | . . 966 Core 256 | . . 256 Absorbed by Shields . | . . . Core Remaining (%) 100 | 100 . . Volleys Fired 16 | 10 2 4 Largest 2 | 2 2 2 Hottest 50 | 40 40 50 Shots Fired 31 | 20 3 8 Gun 28 | 20 3 5 Cannon . | . . . Launcher 3 | . . 3 Special . | . . . Kinetic 28 | 20 3 5 Thermal . | . . . Explosive 3 | . . 3 Electromagnetic . | . . . Robot Hit Streak 7 | 7 5 1 Robot Miss Streak 3 | 3 . 3 Penetration Max . | . . . Secondary Targets . | . . . Shots Hit Robots 18 | 12 3 3 Core Hits 22 | 6 1 15 Critical Kills . | . . . Critical Parts Destroyed . | . . . Critical Strikes . | . . . Melee Attacks . | . . . Impact . | . . . Slashing . | . . . Piercing . | . . . Sneak Attacks . | . . . Combat Hostiles . | . . . Follow-up Attacks . | . . . Damage Inflicted 663 | 183 35 445 Guns 222 | 174 35 13 Cannons . | . . . Explosions 432 | . . 432 Melee . | . . . Ramming 9 | 9 . . Kinetic 222 | 174 35 13 Thermal . | . . . Explosive 432 | . . 432 Electromagnetic . | . . . Impact . | . . . Slashing . | . . . Piercing . | . . . Highest Corruption . | . . . Average Corruption . | . . . Corruption Purged . | . . . Corruption Blocked . | . . . Overload Shots . | . . . Overflow Damage . | . . . Projectiles . | . . . Explosions . | . . . Melee . | . . . Knockbacks . | . . . Impact . | . . . Kinetic . | . . . Secondary . | . . . Self-Inflicted Damage 61 | . . 61 Shots 3 | . . 3 Rammed . | . . . Targets Rammed 3 | 3 . . Kicked 3 | 3 . . Crushed . | . . . Highest Temperature 56 | . . 56 Average Temperature 39 | . . 39 Received Heat Transfer 80 | . . 80 Siege Activations . | . . . Robots Corrupted . | . . . Combat Hostiles . | . . . Parts Fried . | . . . Impact Corruptions . | . . . Robots Melted . | . . . Combat Hostiles . | . . . Parts Melted . | . . . Heat Transferred . | . . . Parts Sabotaged . | . . . Parts Stolen . | . . . Parts Stripped . | . . . Power Chain Reactions . | . . . Alert | -11 -10 -10 ------- Run | Yrd Mat Min Peak Influence 48 | 20 48 30 Initial 18 | . 13 18 Average 14 | 8 27 12 Maximum Alert Level . | . . . Low Security (%) 100 | 100 100 100 Level 1 . | . . . Level 2 . | . . . Level 3 . | . . . Level 4 . | . . . Level 5 . | . . . High Security . | . . . Max Security . | . . . Squads Dispatched 1 | . 1 . Investigation . | . . . Extermination . | . . . Reinforcement 1 | . 1 . Assault . | . . . Garrison . | . . . Intercept . | . . . Searches Triggered . | . . . Construction Impeded . | . . . Haulers Reinforced . | . . . Active Scanning Responses . | . . . Cargo Convoy Interrupts . | . . . Stealth | -11 -10 -10 --------- Run | Yrd Mat Min Distress Signals . | . . . Communications Jammed . | . . . Distress Signals . | . . . Times Spotted 13 | . 2 11 Peak Tracking Total 8 | . 2 8 Tactical Retreats . | . . . Traps | -11 -10 -10 ------- Run | Yrd Mat Min Traps Triggered . | . . . Indirectly . | . . . Trap Hack Attempts . | . . . Triggered . | . . . Disarmed . | . . . Reprogrammed . | . . . Reused . | . . . Traps Extracted . | . . . Installed . | . . . Triggered . | . . . Machines | -11 -10 -10 ---------- Run | Yrd Mat Min Machines Disabled . | . . . Max in Single Turn . | . . . Machines Repaired . | . . . Machines Dismantled . | . . . Machines Sabotaged . | . . . Overloaded Fab Kills . | . . . Hacking | -11 -10 -10 --------- Run | Yrd Mat Min Machines Accessed 1 | . 1 . Terminals 1 | . 1 . Fabricators . | . . . Repair Stations . | . . . Recycling Units . | . . . Scanalyzers . | . . . Garrison Access . | . . . Total Hacks 3 | . 3 . Successful 2 | . 2 . Failed 1 | . 1 . Catastrophic . | . . . Database Lockouts . | . . . Manual . | . . . Terminals 3 | . 3 . Fabricators . | . . . Repair Stations . | . . . Recycling Units . | . . . Scanalyzers . | . . . Garrison Access . | . . . Terminal Hacks 2 | . 2 . Robot Analysis 1 | . 1 . Locate Traps 1 | . 1 . Fabricator Hacks . | . . . Repair Station Hacks . | . . . Recycling Unit Hacks . | . . . Scanalyzer . | . . . Garrison Access Hacks . | . . . Unauthorized Hacks . | . . . Terminals . | . . . Fabricators . | . . . Repair Stations . | . . . Recycling Units . | . . . Scanalyzers . | . . . Garrison Access . | . . . Data Cores Recovered . | . . . Used . | . . . Hacking Detections 1 | . 1 . Full Trace Events . | . . . Feedback Events . | . . . Feedback Blocked . | . . . Robot Schematics Acquired . | . . . Robots Built . | . . . Authchips . | . . . Time . | . . . Total Robot Build Rating . | . . . Part Schematics Acquired . | . . . Parts Built . | . . . Authchips . | . . . Time . | . . . Total Part Build Rating . | . . . Parts Repaired . | . . . Time . | . . . Parts Recycled . | . . . Recycled Matter . | . . . Retrieved Matter . | . . . Retrieved Components . | . . . Parts Scanalyzed . | . . . Part Schematics Acquired . | . . . Parts Damaged . | . . . Bothacking | -11 -10 -10 ------------ Run | Yrd Mat Min Used RIF Installer . | . . . Robots Hacked . | . . . Non-combat . | . . . Combat . | . . . Robot Hacks Applied . | . . . Relay Couplers Released . | . . . Fabnet Peak Effective % . | . . . Robots Rewired . | . . . Allies Hacked . | . . . Hacks Repelled . | . . . Allies | -11 -10 -10 -------- Run | Yrd Mat Min Total Allies . | . . . Largest Group . | . . . Highest-Rated Group . | . . . Highest-Rated Ally . | . . . Total Orders . | . . . Ally Attacks . | . . . Total Damage . | . . . Kills . | . . . Allies Corrupted . | . . . Allies Melted . | . . . Intel | -11 -10 -10 ------- Run | Yrd Mat Min Robot Analysis Total 1 | . 1 . Derelict Logs Recovered 1 | . . 1 Drone Launches . | . . . Drone Recoveries . | . . . Exploration | -11 -10 -10 ------------- Run | Yrd Mat Min Turns Passed 290 | 131 73 86 Spaces Moved 185 | 69 55 61 Core 6 | 6 . . Treads . | . . . Legs 150 | 63 55 32 Wheels 29 | . . 29 Hover . | . . . Flight . | . . . Fastest Speed 50 | 50 120 80 Average Speed 111 | 113 120 101 Slowest Speed 120 | 120 120 120 Overloaded Moves . | . . . Propulsion Burnouts . | . . . Robots Hopped . | . . . Cave-ins Triggered . | . . . Exploration Rate (%) 14 | 4 13 26 Regions Visited 2 Branch Regions 1 Pre-discovered Areas . | . . . Known Exits Taken . | . . . Unknown Exits Taken 2 | 1 1 . Scrap Searched . | . . . Spaces Dug . | . . . Terrain Destroyed 15 | . . 15 Melee . | . . . Projectile . | . . . AOE 15 | . . 15 Terrain Rammed . | . . . Walls Destroyed . | . . . Machines Disabled . | . . . Actions | -11 -10 -10 --------- Run | Yrd Mat Min Total 230 | 97 58 75 Wait . | . . . Move 183 | 68 54 61 Hop . | . . . Pick Up 8 | 6 1 1 Fast Attach 7 | 7 . . Attach 6 | 1 . 5 Detach 1 | 1 . . Swap 6 | 1 1 4 Drop . | . . . Fire 16 | 10 2 4 Melee . | . . . Ram . | . . . Kick 3 | 3 . . Crush . | . . . Escape Stasis . | . . . Rewire . | . . . Trap . | . . . Miscellaneous . | . . . Route ------- -11/Scrapyard -10/Materials -10/Mines History --------- Turn | Location | Event 5 | -11/Scrapyard | Discovered new exit (range 15) 132 | -11/Scrapyard | Entered Materials 186 | -10/Materials | Discovered new exit (range 14) 205 | -10/Materials | Entered Mines 206 | -10/Mines | Assembled infested the area 216 | -10/Mines | Learned Materials emergency access door positions 256 | -10/Mines | Core integrity fell below 50% 277 | -10/Mines | Core integrity fell below 20% 291 | -10/Mines | Destroyed by as-08690 with Assembled Blade Last Messages --------------- 00264_ The unstable cave ceiling collapses. 00264_ D-53 Grenadier knocked back. 00264_ D-53 Grenadier suffers critical hit (Burn). 00264_ as-62105 destroyed. 00264_ U-05 Engineer builds a Wall. 00265_ The unstable cave ceiling collapses. 00268_ U-05 Engineer lays Concrete. 00270_ Assault Rifle destroyed. 00270_ as-72585 destroyed. 00271_ The unstable cave ceiling collapses. 00271_ U-05 Engineer builds a Wall. 00273_ Lgt. Ion Engine destroyed. 00273_ Wheel destroyed. 00275_ The unstable cave ceiling collapses. 00280_ Wheel destroyed. 00281_ The unstable cave ceiling collapses. 00281_ Acquired Lgt. Ion Engine. 00284_ The unstable cave ceiling collapses. 00289_ Seismic Detector destroyed. 00289_ Wheel destroyed. Map ----- +----------------------------------------------------+ | ?????????????????????????????????????????????????? | | ?????????????????????????????????????????????????? | | ?????????????????????????????????????????????????? | | ?????????????????????????????????????????????????? | | ?????????????????????????????????????????????????? | | ?????????????????????????????????????????????????? | | ????????????????????#????????????????????????????? | | ?????????????????## #????????????????????????????? | | ??????????#####?# % ?????????????????????????????? | | ?????????## ## ??????????????????????????????? | | ????????## ???????????????????????????????? | | ????????? ????????????????????????????????? | | #####???? ?? #?????????????????????????????? | | #???# #??? #????????????????????????????? | | ## ## #???? ????????????????????????????? | | """ # #????? ???????????????????????????? | | "" # ##????? ???????????????????????????? | | " ?????? #??????????????????????????? | | % #??# ? #?????????????????????????? | | # # ##?## """=%#????????????????????????? | | # ? #### """ ! ##??????????????????????? | | # """ ##?????????????????????? | | ## ##????????????????????? | | # #?????# ##?????##????????????? | | ## ######???# ### ###??????????? | | # ## # ###### @ ???????? | | # ## # ### a a ???????? | | " #?## ##### ""??????????? | | #### ##?????? ""??????????? | | # #??????????"??????????? | | ## ##### #?????????????????????? | | # $ #???? #?????????????????????? | | ## ##???? ?????????????????????? | | ### ## #####????##?????????????????????? | | ??# # ##### #??????????????????????????????? | | ???#######??# #??????????????????????????????? | | ????????????## #??????????????????????????????? | | ?????????????## ##??????????????????????????????? | | ???????????????###???????????????????????????????? | | ?????????????????????????????????????????????????? | | ?????????????????????????????????????????????????? | | ?????????????????????????????????????????????????? | | ?????????????????????????????????????????????????? | | ?????????????????????????????????????????????????? | | | | | | | | | | | | | +----------------------------------------------------+ Best States ------------- Heat Dissipation 25 Energy Generation 10 Energy Capacity 250 Matter Stores 300 Matter Capacity 300 Sight Range 16 Terrain Scan Density 10 Evasion (%) 55 Item Schematics ----------------- None Robot Schematics ------------------ None Fabricated ------------ Nothing Alien Tech Used ----------------- None Achievements -------------- Use The Force Challenges ------------ None Game ------ Seed ArchitectGunBlaster Manual? 0 Play Time 00:07:37 Cumulative 24.6 hours Start 2024.08.07 @ 01:29:08 End 2024.08.07 @ 01:34:35 Sessions 1 Manual Loads 0 Difficulty Rogue Special Mode None Game No. 36 Rogue 36 Adventurer 0 Explorer 0 Win Type - Total 0 Types 0/0/0/0/0/0/0/0/0 Lore% 17 Gallery% 32 Achievement% 24 Wizard Run 0 Options --------- Layout 0 ASCII 0 Keyboard 0 Movement Arrows Keybinds 0 Fullscreen 2 Font 24/Smallcaps Map View 76x50 Zoom Use 0% Tactical HUD 1 Map Filters NONE Filters NONE Steam 1 RUN: 12848256-fb25-43ef-9f3a-1be82b7152e0